[Event "Bayerischer Schachbund IM 2024"]
[Site "Rosenheim"]
[Date "2024.08.17"]
[Round "8.9"]
[White "Georgescu, Lena"]
[Black "Lucas, Arthur"]
[Result "1-0"]
[Annotator "RC"]
[ECO "C12"]
[WhiteElo "2209"]
[BlackElo "2332"]
[PlyCount "107"]
[EventDate "2024.08.12"]
[EventType "tourn"]
[EventCountry "GER"]
[SourceTitle "playchess.com"]
[Source "ChessBase"]
[SourceQuality "1"]
[TimeControl "40/5400+30:1800+30"]

1. e4 {[%emt 0:00:03]} e6 {[%emt 0:05:47]} 2. d4 {[%emt 0:00:04]} d5 {[%emt 0:00:04]} 3. Nc3 {[%emt 0:00:04]} Nf6 {[%emt 0:00:05]} 4. Bg5 {[%emt 0:00:04]} Bb4 {[%emt 0:00:19]} 5. e5 {[%emt 0:00:07]} h6 {[%emt 0:00:07]} 6. Bd2 {[%emt 0:00:05]} Bxc3 {[%emt 0:00:10]} 7. bxc3 {[%emt 0:00:03]} Ne4 {[%emt 0:00:07]} 8. Bc1 {[%emt 0:00:02]} Nxc3 {[%emt 0:00:30]} 9. Qg4 {[%emt 0:00:05]} g6 {[%emt 0:00:13]} 10. Bd3 {[%emt 0:00:30]} c5 {[%emt 0:00:25]} 11. dxc5 {[%emt 0:00:39]} Qa5 {[%emt 0:00:07]} 12. Bd2 {[%emt 0:00:51]} Qa4 {[%emt 0:00:05]} 13. Qf3 {[%emt 0:01:22]} Ne4 {[%emt 0:00:07]} 14. Bxe4 {[%emt 0:00:40]} Qxe4+ {[%emt 0:00:15]} 15. Qxe4 {[%emt 0:00:54]} dxe4 {[%emt 0:00:05]} 16. Ne2 {[%emt 0:06:08]} Bd7 {[%emt 0:00:07]} 17. O-O {[%emt 0:13:40]} Na6 {[%emt 0:25:46]} 18. Be3 {[%emt 0:13:39]} Bb5 {[%emt 0:19:31]} 19. Rfe1 {[%emt 0:01:53]} Bxe2 {[%emt 0:00:06]} 20. Rxe2 {[%emt 0:00:03]} O-O-O {[%emt 0:00:24]} 21. c3 {[%emt 0:32:10]} Rd5 {[%emt 0:03:20]} 22. h4 {[%emt 0:01:12]} h5 {[%emt 0:08:36]} 23. c4 {[%emt 0:02:07]} Rd7 {[%emt 0:06:06]} 24. c6 {[%emt 0:03:53]} bxc6 {[%emt 0:00:20]} 25. Rb1 {[%emt 0:00:50]} Rhd8 {[%emt 0:13:41]} 26. Kh2 {[%emt 0:01:03]} Rd1 {[%emt 0:03:18]} 27. Reb2 {[%emt 0:07:34]} Rxb1 {[%emt 0:03:08]} 28. Rxb1 {[%emt 0:00:01]} Nb8 {[%emt 0:05:07]} 29. Kg3 {[%emt 0:02:56]} Rd3 {[%emt 0:03:19]} 30. Rb3 {[%emt 0:01:55]} Nd7 {[%emt 0:00:48]} 31. Kf4 {[%emt 0:00:39]} c5 {[%emt 0:03:25]} 32. Kxe4 {[%emt 0:00:20]} Rxb3 {[%emt 0:00:15]} 33. axb3 {[%emt 0:00:08]} Kc7 {[%emt 0:00:43]} 34. f3 {[%emt 0:02:32]} Kc6 {[%emt 0:00:31]} 35. Bd2 {[%emt 0:01:29]} Kb6 {[%emt 0:00:30]} 36. Bc3 {[%emt 0:01:50]} Nb8 {[%emt 0:00:18]} 37. Kf4 {[%emt 0:01:45]} Kc6 {[%emt 0:00:42]} 38. g4 {[%emt 0:01:06]} hxg4 {[%emt 0:00:31]} 39. fxg4 {[%emt 0:00:09]} Kd7 {[%emt 0:00:03]} 40. h5 {[%emt 0:02:07]} gxh5 {[%emt 0:00:35]} 41. gxh5 {[%emt 0:30:18]} Ke8 {[%emt 0:03:30]} 42. b4 {[%emt 0:00:00]} cxb4 {[%emt 0:10:37]} 43. Bxb4 {[%emt 0:00:00]} f5 {[%emt 0:00:12]} 44. exf6 {[%emt 0:00:00]} Kf7 {[%emt 0:00:17]} 45. Be7 {[%emt 0:00:00]} Nc6 {[%emt 0:04:13]} 46. Kg5 {[%emt 0:00:00]} Ne5 {[%emt 0:02:11]} 47. h6 {[%emt 0:00:00]} Ke8 {[%emt 0:00:08]} 48. h7 {[%emt 0:00:15]} Nf7+ {[%emt 0:00:09]} 49. Kg6 {[%emt 0:02:11]} e5 {[%emt 0:00:51]} 50. c5 {[%emt 0:01:45]} e4 {[%emt 0:00:27]} 51. c6 {[%emt 0:00:22]} e3 {[%emt 0:00:13]} 52. c7 {[%emt 0:00:34]} Nh8+ {[%emt 0:00:15]} 53. Kg7 {[%emt 0:00:27]} Kd7 {[%emt 0:00:05]} 54. Bb4 {[%emt 0:01:49]} 1-0

[Event "Bayerischer Schachbund IM 2024"]
[Site "Rosenheim"]
[Date "2024.08.17"]
[Round "8.10"]
[White "Goldbeck, Lars"]
[Black "Schneider, Jana"]
[Result "1-0"]
[Annotator "RC"]
[ECO "D35"]
[WhiteElo "2321"]
[BlackElo "2275"]
[PlyCount "77"]
[EventDate "2024.08.12"]
[EventType "tourn"]
[EventCountry "GER"]
[SourceTitle "playchess.com"]
[Source "ChessBase"]
[SourceQuality "1"]
[TimeControl "40/5400+30:1800+30"]

1. d4 {[%emt 0:00:05]} d5 {[%emt 0:00:11]} 2. c4 {[%emt 0:00:06]} e6 {[%emt 0:00:06]} 3. Nc3 {[%emt 0:00:14]} Nf6 {[%emt 0:00:23]} 4. cxd5 {[%emt 0:00:05]} exd5 {[%emt 0:00:07]} 5. Bg5 {[%emt 0:00:04]} c6 {[%emt 0:00:23]} 6. e3 {[%emt 0:00:04]} Be7 {[%emt 0:00:10]} 7. Bd3 {[%emt 0:00:05]} Nbd7 {[%emt 0:00:12]} 8. Nf3 {[%emt 0:00:14]} h6 {[%emt 0:00:54]} 9. Bh4 {[%emt 0:08:53]} Nh5 {[%emt 0:00:34]} 10. Bxe7 {[%emt 0:01:02]} Qxe7 {[%emt 0:00:09]} 11. O-O {[%emt 0:00:52]} O-O {[%emt 0:00:28]} 12. Rb1 {[%emt 0:04:20]} Nhf6 {[%emt 0:01:54]} 13. Nd2 {[%emt 0:04:24]} Nb6 {[%emt 0:02:52]} 14. b4 {[%emt 0:10:37]} Ng4 {[%emt 0:13:45]} 15. Nf3 {[%emt 0:11:50]} Nc4 {[%emt 0:07:34]} 16. h3 {[%emt 0:12:46]} Nf6 {[%emt 0:04:41]} 17. b5 {[%emt 0:07:43]} cxb5 {[%emt 0:15:36]} 18. Rxb5 {[%emt 0:04:50]} Be6 {[%emt 0:01:51]} 19. Bxc4 {[%emt 0:05:40]} dxc4 {[%emt 0:00:15]} 20. e4 {[%emt 0:00:53]} Rfd8 {[%emt 0:04:00]} 21. Re1 {[%emt 0:00:56]} b6 {[%emt 0:04:26]} 22. d5 {[%emt 0:01:30]} Bd7 {[%emt 0:07:23]} 23. d6 {[%emt 0:01:33]} Qf8 {[%emt 0:04:44]} 24. Rb1 {[%emt 0:00:40]} Be6 {[%emt 0:01:19]} 25. e5 {[%emt 0:00:21]} Nd7 {[%emt 0:00:19]} 26. Nd4 {[%emt 0:02:00]} Nc5 {[%emt 0:01:13]} 27. f4 {[%emt 0:07:59]} Nd3 {[%emt 0:03:13]} 28. Re4 {[%emt 0:00:35]} Qe8 {[%emt 0:02:49]} 29. Qe2 {[%emt 0:02:40]} Bc8 {[%emt 0:04:20]} 30. Ndb5 {[%emt 0:02:19]} Qc6 {[%emt 0:00:20]} 31. Nc7 {[%emt 0:01:45]} Bf5 {[%emt 0:02:27]} 32. Rd4 {[%emt 0:02:28]} Qc5 {[%emt 0:02:31]} 33. Qe3 {[%emt 0:00:30]} Nxf4 {[%emt 0:03:13]} 34. Rb5 {[%emt 0:00:54]} Nxg2 {[%emt 0:06:03]} 35. Kxg2 {[%emt 0:00:02]} Qc6+ {[%emt 0:00:28]} 36. N3d5 {[%emt 0:01:14]} Rac8 {[%emt 0:01:11]} 37. Qf3 {[%emt 0:00:37]} Qd7 {[%emt 0:01:28]} 38. Qxf5 {[%emt 0:01:51]} Rxc7 {[%emt 0:00:15]} 39. dxc7 {[%emt 0:00:18]} 1-0

[Event "Bayerischer Schachbund IM 2024"]
[Site "Rosenheim"]
[Date "2024.08.18"]
[Round "9.6"]
[White "Schneider, Jana"]
[Black "Schulz, Lukas"]
[Result "0-1"]
[Annotator "RC"]
[ECO "B40"]
[WhiteElo "2275"]
[BlackElo "2298"]
[PlyCount "74"]
[EventDate "2024.08.12"]
[EventType "tourn"]
[EventCountry "GER"]
[SourceTitle "playchess.com"]
[Source "ChessBase"]
[SourceQuality "1"]
[TimeControl "40/5400+30:1800+30"]

1. e4 {[%emt 0:00:04]} c5 {[%emt 0:00:12]} 2. Nf3 {[%emt 0:00:17]} Nc6 {[%emt 0:00:19]} 3. g3 {[%emt 0:04:20]} Nf6 {[%emt 0:05:50]} 4. d3 {[%emt 0:00:16]} d5 {[%emt 0:01:27]} 5. e5 {[%emt 0:01:30]} Nd7 {[%emt 0:02:17]} 6. Qe2 {[%emt 0:00:54]} e6 {[%emt 0:00:45]} 7. Bg2 {[%emt 0:00:59]} Qc7 {[%emt 0:02:32]} 8. Bf4 {[%emt 0:00:35]} Be7 {[%emt 0:00:56]} 9. h4 {[%emt 0:01:21]} h6 {[%emt 0:05:38]} 10. h5 {[%emt 0:04:29]} a6 {[%emt 0:01:34]} 11. c4 {[%emt 0:03:31]} Nb6 {[%emt 0:06:30]} 12. b3 {[%emt 0:02:55]} Bd7 {[%emt 0:02:54]} 13. Nc3 {[%emt 0:02:03]} Nd4 {[%emt 0:05:07]} 14. Nxd4 {[%emt 0:10:26]} cxd4 {[%emt 0:00:10]} 15. Nb1 {[%emt 0:00:49]} Bc6 {[%emt 0:02:30]} 16. O-O {[%emt 0:00:38]} O-O-O {[%emt 0:06:05]} 17. Nd2 {[%emt 0:04:57]} g5 {[%emt 0:14:18]} 18. hxg6 {[%emt 0:00:34]} fxg6 {[%emt 0:00:19]} 19. Nf3 {[%emt 0:04:39]} dxc4 {[%emt 0:02:03]} 20. bxc4 {[%emt 0:03:46]} g5 {[%emt 0:03:57]} 21. Bc1 {[%emt 0:00:32]} Na4 {[%emt 0:05:26]} 22. Nd2 {[%emt 0:09:33]} Nc3 {[%emt 0:03:40]} 23. Qe1 {[%emt 0:03:24]} Rhf8 {[%emt 0:06:44]} 24. Nb3 {[%emt 0:06:31]} Bxg2 {[%emt 0:05:44]} 25. Kxg2 {[%emt 0:00:14]} Qc6+ {[%emt 0:00:18]} 26. Kh2 {[%emt 0:03:47]} Qf3 {[%emt 0:01:58]} 27. Nxd4 {[%emt 0:08:04]} Rxd4 {[%emt 0:00:07]} 28. Qxc3 {[%emt 0:00:06]} Rxd3 {[%emt 0:00:14]} 29. Qc2 {[%emt 0:04:10]} h5 {[%emt 0:00:06]} 30. Be3 {[%emt 0:01:11]} h4 {[%emt 0:00:07]} 31. g4 {[%emt 0:01:56]} Rxe3 {[%emt 0:00:14]} 32. fxe3 {[%emt 0:00:33]} Qg3+ {[%emt 0:00:04]} 33. Kh1 {[%emt 0:00:06]} Qh3+ {[%emt 0:00:05]} 34. Kg1 {[%emt 0:00:11]} Qxe3+ {[%emt 0:00:05]} 35. Rf2 {[%emt 0:01:06]} Bc5 {[%emt 0:00:06]} 36. Raf1 {[%emt 0:00:45]} Rxf2 {[%emt 0:00:27]} 37. Rxf2 {[%emt 0:00:07]} Qxf2+ {[%emt 0:00:07]} 0-1

[Event "Bayerischer Schachbund IM 2024"]
[Site "Rosenheim"]
[Date "2024.08.18"]
[Round "9.7"]
[White "Lucas, Arthur"]
[Black "Goldbeck, Lars"]
[Result "1/2-1/2"]
[Annotator "RC"]
[ECO "B13"]
[WhiteElo "2332"]
[BlackElo "2321"]
[PlyCount "83"]
[EventDate "2024.08.12"]
[EventType "tourn"]
[EventCountry "GER"]
[SourceTitle "playchess.com"]
[Source "ChessBase"]
[SourceQuality "1"]
[TimeControl "40/5400+30:1800+30"]

1. e4 {[%emt 0:14:04]} c6 {[%emt 0:00:05]} 2. d4 {[%emt 0:00:13]} d5 {[%emt 0:00:02]} 3. exd5 {[%emt 0:00:52]} cxd5 {[%emt 0:00:05]} 4. c4 {[%emt 0:00:05]} Nf6 {[%emt 0:00:12]} 5. Nc3 {[%emt 0:00:05]} Nc6 {[%emt 0:00:28]} 6. Nf3 {[%emt 0:00:08]} a6 {[%emt 0:01:16]} 7. Be3 {[%emt 0:03:47]} Be6 {[%emt 0:06:31]} 8. c5 {[%emt 0:01:10]} g6 {[%emt 0:02:40]} 9. h3 {[%emt 0:03:23]} Ne4 {[%emt 0:07:38]} 10. Bd3 {[%emt 0:04:06]} Bf5 {[%emt 0:04:13]} 11. Bxe4 {[%emt 0:06:37]} Bxe4 {[%emt 0:17:10]} 12. Ng5 {[%emt 0:05:02]} Bf5 {[%emt 0:22:11]} 13. Qb3 {[%emt 0:08:08]} h6 {[%emt 0:01:33]} 14. Nf3 {[%emt 0:01:04]} Qd7 {[%emt 0:01:06]} 15. Qxd5 {[%emt 0:02:04]} Qxd5 {[%emt 0:00:24]} 16. Nxd5 {[%emt 0:00:03]} Rd8 {[%emt 0:00:17]} 17. Nc3 {[%emt 0:02:04]} Bg7 {[%emt 0:04:08]} 18. Rd1 {[%emt 0:00:25]} Nb4 {[%emt 0:01:01]} 19. O-O {[%emt 0:01:21]} Be6 {[%emt 0:01:06]} 20. a3 {[%emt 0:05:53]} Nd5 {[%emt 0:00:21]} 21. Nxd5 {[%emt 0:00:57]} Bxd5 {[%emt 0:00:54]} 22. Ne5 {[%emt 0:05:51]} O-O {[%emt 0:04:15]} 23. Rc1 {[%emt 0:06:35]} Bxe5 {[%emt 0:04:39]} 24. dxe5 {[%emt 0:00:04]} Kg7 {[%emt 0:00:20]} 25. Rfd1 {[%emt 0:06:48]} Bc6 {[%emt 0:03:07]} 26. f4 {[%emt 0:01:26]} Ba4 {[%emt 0:02:38]} 27. Rxd8 {[%emt 0:06:12]} Rxd8 {[%emt 0:00:03]} 28. Kf2 {[%emt 0:00:13]} f6 {[%emt 0:03:22]} 29. exf6+ {[%emt 0:01:51]} exf6 {[%emt 0:00:08]} 30. g4 {[%emt 0:05:35]} Rd3 {[%emt 0:03:11]} 31. Rc4 {[%emt 0:02:07]} Bc6 {[%emt 0:00:09]} 32. Rd4 {[%emt 0:07:30]} Rxd4 {[%emt 0:11:17]} 33. Bxd4 {[%emt 0:00:05]} Kf7 {[%emt 0:00:00]} 34. Ke3 {[%emt 0:00:26]} Bg2 {[%emt 0:00:00]} 35. h4 {[%emt 0:00:13]} Bh3 {[%emt 0:00:00]} 36. Kf3 {[%emt 0:01:05]} h5 {[%emt 0:00:00]} 37. gxh5 {[%emt 0:00:36]} gxh5 {[%emt 0:00:00]} 38. Ke3 {[%emt 0:00:40]} Ke6 {[%emt 0:00:00]} 39. Kd3 {[%emt 0:00:17]} f5 {[%emt 0:00:00]} 40. c6 {[%emt 0:00:37]} bxc6 {[%emt 0:00:00]} 41. Kc4 {[%emt 0:30:12]} Kd7 {[%emt 0:23:38]} 42. Kc5 {[%emt 0:01:36]} 1/2-1/2

[Event "Bayerischer Schachbund IM 2024"]
[Site "Rosenheim"]
[Date "2024.08.18"]
[Round "9.8"]
[White "Platzgummer, Fabian"]
[Black "Georgescu, Lena"]
[Result "1/2-1/2"]
[Annotator "RC"]
[ECO "A07"]
[WhiteElo "2304"]
[BlackElo "2209"]
[PlyCount "82"]
[EventDate "2024.08.12"]
[EventType "tourn"]
[EventCountry "GER"]
[SourceTitle "playchess.com"]
[Source "ChessBase"]
[SourceQuality "1"]
[TimeControl "40/5400+30:1800+30"]

1. Nf3 {[%emt 0:00:03]} d5 {[%emt 0:00:03]} 2. g3 {[%emt 0:00:13]} b6 {[%emt 0:00:05]} 3. Bg2 {[%emt 0:00:15]} Bb7 {[%emt 0:00:08]} 4. d4 {[%emt 0:01:41]} e6 {[%emt 0:00:23]} 5. O-O {[%emt 0:00:44]} Nd7 {[%emt 0:00:28]} 6. Ne5 {[%emt 0:07:26]} Nxe5 {[%emt 0:05:52]} 7. dxe5 {[%emt 0:00:06]} Ne7 {[%emt 0:09:55]} 8. c4 {[%emt 0:05:22]} Qd7 {[%emt 0:03:51]} 9. Nc3 {[%emt 0:04:11]} O-O-O {[%emt 0:01:06]} 10. cxd5 {[%emt 0:09:10]} Nxd5 {[%emt 0:02:17]} 11. Ne4 {[%emt 0:06:20]} f5 {[%emt 0:03:56]} 12. exf6 {[%emt 0:02:51]} gxf6 {[%emt 0:00:13]} 13. Qb3 {[%emt 0:03:10]} f5 {[%emt 0:05:33]} 14. Nc3 {[%emt 0:04:51]} Nxc3 {[%emt 0:00:56]} 15. Qxc3 {[%emt 0:07:25]} Bg7 {[%emt 0:01:34]} 16. Qa3 {[%emt 0:07:46]} Bxg2 {[%emt 0:07:37]} 17. Kxg2 {[%emt 0:00:02]} Qc6+ {[%emt 0:00:47]} 18. Kg1 {[%emt 0:05:46]} Rd5 {[%emt 0:07:10]} 19. Be3 {[%emt 0:07:23]} Qd6 {[%emt 0:04:26]} 20. Qb3 {[%emt 0:13:02]} Rd8 {[%emt 0:04:02]} 21. a4 {[%emt 0:01:07]} a5 {[%emt 0:02:07]} 22. Rac1 {[%emt 0:02:07]} Kb7 {[%emt 0:00:42]} 23. Qc2 {[%emt 0:02:09]} Rd7 {[%emt 0:02:45]} 24. b3 {[%emt 0:00:45]} Bd4 {[%emt 0:02:27]} 25. Bxd4 {[%emt 0:02:13]} Rxd4 {[%emt 0:00:07]} 26. Qc3 {[%emt 0:00:07]} Qd5 {[%emt 0:01:53]} 27. Qe3 {[%emt 0:01:30]} f4 {[%emt 0:02:21]} 28. Qc3 {[%emt 0:02:57]} e5 {[%emt 0:02:15]} 29. Rc2 {[%emt 0:00:33]} e4 {[%emt 0:04:39]} 30. f3 {[%emt 0:01:52]} fxg3 {[%emt 0:04:20]} 31. hxg3 {[%emt 0:00:06]} Ka7 {[%emt 0:06:44]} 32. Qe3 {[%emt 0:00:46]} Qe5 {[%emt 0:02:11]} 33. f4 {[%emt 0:01:04]} Qd5 {[%emt 0:03:12]} 34. Rfc1 {[%emt 0:00:17]} c5 {[%emt 0:02:29]} 35. Kg2 {[%emt 0:01:13]} h5 {[%emt 0:02:36]} 36. Rc3 {[%emt 0:00:22]} Rg7 {[%emt 0:00:25]} 37. Rh1 {[%emt 0:00:36]} Rg4 {[%emt 0:01:35]} 38. Kf2 {[%emt 0:00:42]} Qf7 {[%emt 0:01:50]} 39. Rc4 {[%emt 0:01:09]} Qd5 {[%emt 0:00:20]} 40. Rc3 {[%emt 0:00:31]} Ka6 {[%emt 0:02:57]} 41. Rh2 {[%emt 0:04:49]} Qf7 {[%emt 0:08:47]} 1/2-1/2

[Event "Bayerischer Schachbund IM 2024"]
[Site "Rosenheim"]
[Date "2024.08.18"]
[Round "9.10"]
[White "Reimann, Sebastian"]
[Black "Hasenohr, Benedict"]
[Result "1-0"]
[Annotator "RC"]
[ECO "C01"]
[WhiteElo "2327"]
[BlackElo "2339"]
[PlyCount "57"]
[EventDate "2024.08.12"]
[EventType "tourn"]
[EventCountry "GER"]
[SourceTitle "playchess.com"]
[Source "ChessBase"]
[SourceQuality "1"]
[TimeControl "40/5400+30:1800+30"]

1. e4 {[%emt 0:05:47]} e6 {[%emt 0:00:05]} 2. d4 {[%emt 0:00:51]} d5 {[%emt 0:00:05]} 3. exd5 {[%emt 0:00:05]} exd5 {[%emt 0:00:05]} 4. Nf3 {[%emt 0:00:10]} Bd6 {[%emt 0:01:03]} 5. Bd3 {[%emt 0:02:35]} Bg4 {[%emt 0:01:21]} 6. h3 {[%emt 0:00:15]} Bh5 {[%emt 0:00:17]} 7. O-O {[%emt 0:00:09]} Ne7 {[%emt 0:00:26]} 8. Re1 {[%emt 0:00:08]} Nbc6 {[%emt 0:01:06]} 9. c3 {[%emt 0:00:37]} f6 {[%emt 0:05:16]} 10. Nbd2 {[%emt 0:00:48]} O-O {[%emt 0:01:10]} 11. b4 {[%emt 0:04:42]} Qd7 {[%emt 0:11:12]} 12. a4 {[%emt 0:02:28]} Rae8 {[%emt 0:03:12]} 13. Nf1 {[%emt 0:14:54]} f5 {[%emt 0:28:56]} 14. Ng3 {[%emt 0:09:48]} Bg6 {[%emt 0:05:36]} 15. Nh4 {[%emt 0:06:29]} f4 {[%emt 0:01:54]} 16. Nxg6 {[%emt 0:00:14]} hxg6 {[%emt 0:04:54]} 17. Nf1 {[%emt 0:00:20]} Nd8 {[%emt 0:16:04]} 18. Qg4 {[%emt 0:01:45]} Qxg4 {[%emt 0:00:51]} 19. hxg4 {[%emt 0:00:08]} Kf7 {[%emt 0:00:18]} 20. Nh2 {[%emt 0:01:10]} g5 {[%emt 0:01:34]} 21. Nf3 {[%emt 0:00:07]} Kf6 {[%emt 0:00:19]} 22. g3 {[%emt 0:02:46]} Nf7 {[%emt 0:00:14]} 23. Kg2 {[%emt 0:01:16]} Ng6 {[%emt 0:00:31]} 24. Bd2 {[%emt 0:02:30]} Nh6 {[%emt 0:00:05]} 25. Rxe8 {[%emt 0:01:28]} Rxe8 {[%emt 0:00:12]} 26. Rh1 {[%emt 0:01:24]} Nf8 {[%emt 0:07:29]} 27. gxf4 {[%emt 0:00:51]} Nxg4 {[%emt 0:02:23]} 28. fxg5+ {[%emt 0:00:12]} Kf7 {[%emt 0:00:19]} 29. Rh4 {[%emt 0:00:07]} 1-0